bitfinex/quotes_BTCUSD_20240820
["timestamp","ask_amount","ask_price","bid_price","bid_amount"]
[1724157325891,0.139226,60806.0,60805.0,0.0841086]
[1724157326502,0.139226,60806.0,60805.0,0.2156766]
[1724157327315,0.139226,60806.0,60805.0,0.0841086]
[1724157327936,0.30322898,60806.0,60805.0,0.0841086]
[1724157328138,0.43479398,60806.0,60805.0,0.0841086]
[1724157328796,0.75269406,60806.0,60805.0,0.0632086]
[1724157328996,0.75269406,60806.0,60805.0,0.0029086]
[1724157329115,1.01582506,60806.0,60805.0,0.0029086]
[1724157329330,1.11592506,60806.0,60805.0,0.0029086]
[1724157329602,1.11692506,60806.0,60805.0,0.0029086]
[1724157329727,1.11592506,60806.0,60805.0,0.0029086]
[1724157330133,1.38005606,60806.0,60805.0,0.0029086]
[1724157330477,1.48296009,60806.0,60805.0,0.0029086]
[1724157331304,1.48496009,60806.0,60805.0,0.0029086]
[1724157331894,1.49197428,60806.0,60805.0,0.0029086]
[1724157332856,1.48897428,60806.0,60805.0,0.0029086]
[1724157333360,1.37657428,60806.0,60805.0,0.0029086]
[1724157333556,1.48897428,60806.0,60805.0,0.0029086]
[1724157339182,1.48997428,60806.0,60805.0,0.0029086]
[1724157339433,1.48897428,60806.0,60805.0,0.0029086]
[1724157340159,1.49197428,60806.0,60805.0,0.0029086]
[1724157340356,1.81860528,60806.0,60805.0,0.0029086]
[1724157344913,1.55547428,60806.0,60805.0,0.0029086]
[1724157345124,1.55147428,60806.0,60805.0,0.0029086]
[1724157345323,1.4967052,60806.0,60805.0,0.0029086]
[1724157345966,1.2335742,60806.0,60805.0,0.0029086]
[1724157346326,1.2355742,60806.0,60805.0,0.0029086]
[1724157347303,1.2335742,60806.0,60805.0,0.0029086]
[1724157347689,1.2355742,60806.0,60805.0,0.0029086]
[1724157348051,1.2375742,60806.0,60805.0,0.0029086]
[1724157349864,1.1760742,60806.0,60805.0,0.0029086]
[1724157350095,1.17810337,60806.0,60805.0,0.0029086]
[1724157350832,1.29232998,60806.0,60805.0,0.0029086]
[1724157354415,1.34166099,60806.0,60805.0,0.0029086]
[1724157354600,1.33766099,60806.0,60805.0,0.0029086]
[1724157355979,1.22526099,60806.0,60805.0,0.0029086]
[1724157356141,1.33766099,60806.0,60805.0,0.0029086]
[1724157357119,1.33966099,60806.0,60805.0,0.0029086]
[1724157357299,1.33866099,60806.0,60805.0,0.0029086]
[1724157357498,1.33666099,60806.0,60805.0,0.0029086]
[1724157358244,1.28732998,60806.0,60805.0,0.0029086]
[1724157360504,1.28832998,60806.0,60805.0,0.0029086]
[1724157360935,1.28732998,60806.0,60805.0,0.0029086]
[1724157361338,1.28832998,60806.0,60805.0,0.0029086]
[1724157363214,1.33766453,60806.0,60805.0,0.0029086]
[1724157363564,1.28832998,60806.0,60805.0,0.0029086]
[1724157364155,1.33766453,60806.0,60805.0,0.0029086]
[1724157364406,1.33966453,60806.0,60805.0,0.0029086]
[1724157364805,1.33968699,60806.0,60805.0,0.0029086]
[1724157367187,1.29032998,60806.0,60805.0,0.0029086]
[1724157367394,1.33668712,60806.0,60805.0,0.0029086]
[1724157368152,1.07355612,60806.0,60805.0,0.0029086]
[1724157368364,1.07355588,60806.0,60805.0,0.0029086]
[1724157369335,0.32577637,60806.0,60805.0,0.0029086]
[1724157369562,0.32577637,60806.0,60805.0,0.3976126]
[1724157371322,0.25117339,60806.0,60805.0,0.3976126]
[1724157372403,0.25117339,60806.0,60805.0,0.1344766]
[1724157372693,0.25117339,60806.0,60805.0,0.3976126]
[1724157373297,0.13877339,60806.0,60805.0,0.3976126]
[1724157373499,0.03586936,60806.0,60805.0,0.3976126]
[1724157374242,0.03586936,60806.0,60805.0,0.1344766]
[1724157374442,0.14826936,60806.0,60805.0,0.0029086]
[1724157374645,0.14826936,60806.0,60805.0,0.1344766]
[1724157378541,0.03586936,60806.0,60805.0,0.1344766]
[1724157383759,0.03586936,60806.0,60805.0,0.3976126]
[1724157383964,0.03586936,60806.0,60805.0,0.1344766]
[1724157387574,0.20336177,60806.0,60805.0,0.0029086]
[1724157387783,0.51376475,60806.0,60805.0,0.0029086]
[1724157387996,0.90279586,60806.0,60805.0,0.0029086]
[1724157388549,1.16592686,60806.0,60805.0,0.0029086]
[1724157392258,1.42905786,60806.0,60805.0,0.0029086]
[1724157392418,1.16592686,60806.0,60805.0,0.0029086]
[1724157392788,1.12095609,60806.0,60805.0,0.0029086]
[1724157393932,1.11795609,60806.0,60805.0,0.0029086]
[1724157395174,1.11895609,60806.0,60805.0,0.0029086]
[1724157398745,1.11795609,60806.0,60805.0,0.0029086]
[1724157398902,1.11895609,60806.0,60805.0,0.0029086]
[1724157399104,1.28101475,60806.0,60805.0,0.0029086]
[1724157399547,1.28301475,60806.0,60805.0,0.0029086]
[1724157403168,1.28001475,60806.0,60805.0,0.0029086]
[1724157404481,1.11795609,60806.0,60805.0,0.0029086]
[1724157405014,1.11795609,60806.0,60805.0,0.00217833]
[1724157407648,1.12095609,60806.0,60805.0,0.00217833]
[1724157408676,1.43541312,60806.0,60805.0,0.00217833]
[1724157408885,1.38608709,60806.0,60805.0,0.00217833]
[1724157409038,1.55006587,60806.0,60805.0,0.00217833]
[1724157409462,1.55934326,60806.0,60805.0,0.00217833]
[1724157412385,1.60866584,60806.0,60805.0,0.00217833]
[1724157418479,2.95387684,60806.0,60805.0,0.00217833]
[1724157418679,3.00455426,60806.0,60805.0,1.6e-07]
[1724157418880,2.45768526,60806.0,60805.0,1.6e-07]
[1724157419082,2.34253236,60806.0,60805.0,1.6e-07]
[1724157419494,1.074926,60795.0,60794.0,0.0009086]
[1724157419704,1.47722909,60795.0,60794.0,0.0009086]
[1724157420108,1.47322909,60795.0,60794.0,0.0009086]
[1724157420311,1.52453609,60795.0,60794.0,0.0009086]
[1724157420517,1.52453732,60795.0,60794.0,0.0009086]
[1724157420711,1.09665009,60795.0,60794.0,0.0009086]
[1724157420975,1.21805009,60795.0,60794.0,0.0019086]
[1724157422090,1.22805009,60795.0,60794.0,0.0019086]
[1724157422958,1.65617786,60795.0,60794.0,0.0019086]
[1724157424394,1.66524151,60795.0,60794.0,0.0019086]
[1724157428397,1.66624151,60795.0,60794.0,0.0019086]
[1724157428591,1.66724151,60795.0,60794.0,0.0019086]
[1724157429269,1.93042051,60795.0,60794.0,0.0019086]
[1724157432020,1.92042051,60795.0,60794.0,0.0019086]
[1724157432388,1.92542051,60795.0,60794.0,0.0009086]
[1724157432792,1.93942051,60795.0,60794.0,0.0009086]
[1724157446841,1.98864239,60795.0,60794.0,0.0009086]
[1724157449178,1.93942051,60795.0,60794.0,7e-08]
[1724157451628,2.0132678,60795.0,60794.0,7e-08]
[1724157452079,2.7153478,60795.0,60794.0,7e-08]
[1724157452298,0.132624,60779.0,60778.0,0.0009086]
[1724157452503,1.12062309,60779.0,60778.0,0.0009086]
[1724157452706,1.38387109,60779.0,60778.0,0.0009086]
[1724157452936,1.40687109,60779.0,60778.0,0.0009086]
[1724157453138,1.41087109,60779.0,60778.0,0.0009086]
[1724157453341,1.5703769,60779.0,60778.0,0.0009086]
[1724157453489,1.5843769,60779.0,60778.0,0.0009086]
[1724157453678,1.41087109,60779.0,60778.0,0.0009086]
[1724157454076,1.42487109,60779.0,60778.0,0.0009086]
[1724157454303,1.48607109,60779.0,60778.0,0.0009086]
[1724157454912,1.83222043,60779.0,60778.0,0.0009086]
[1724157455111,1.93222043,60779.0,60778.0,0.0009086]
[1724157455319,2.09618189,60779.0,60778.0,0.0009086]
[1724157455527,2.09218189,60779.0,60778.0,0.0009086]
[1724157455705,2.01834698,60779.0,60778.0,0.0009086]
[1724157455905,2.09518634,60779.0,60778.0,0.0009086]
[1724157456271,2.08218634,60779.0,60778.0,0.0009086]
[1724157456496,2.09618634,60779.0,60778.0,0.0009086]
[1724157456897,2.08218634,60779.0,60778.0,0.0009086]
[1724157457101,2.09618634,60779.0,60778.0,0.0009086]
[1724157457301,2.07154854,60779.0,60778.0,0.0009086]
[1724157457497,2.00834698,60779.0,60778.0,0.0009086]
[1724157458126,2.02234698,60779.0,60778.0,0.0009086]
[1724157458354,2.07154073,60779.0,60778.0,0.0009086]
[1724157458521,2.05754073,60779.0,60778.0,0.0009086]
[1724157458926,2.08554073,60779.0,60778.0,0.0009086]
[1724157459159,2.02234698,60779.0,60778.0,0.0009086]
[1724157459363,2.05753452,60779.0,60778.0,0.0009086]
[1724157459568,2.09618634,60779.0,60778.0,0.0009086]
[1724157460105,2.11018634,60779.0,60778.0,0.0009086]
[1724157460342,2.11013587,60779.0,60778.0,0.0009086]
[1724157460670,2.37338387,60779.0,60778.0,0.0009086]
[1724157461051,0.658315,60761.0,60760.0,0.0603]
[1724157461267,0.131669,60758.0,60757.0,0.56166654]
[1724157461459,0.131669,60758.0,60757.0,0.009075]
[1724157461460,0.67141098,60758.0,60757.0,0.009075]
[1724157461639,0.97121688,60758.0,60757.0,0.009075]
[1724157461842,0.95774998,60758.0,60757.0,0.009075]
[1724157462063,0.95774998,60758.0,60757.0,0.090275]
[1724157462064,0.40807198,60758.0,60757.0,0.090275]
[1724157463024,0.42207198,60758.0,60757.0,0.090275]
[1724157463154,0.43607198,60758.0,60757.0,0.090275]
[1724157464319,0.19200298,60758.0,60757.0,0.090275]
[1724157464523,0.32367198,60758.0,60757.0,0.090275]
[1724157465101,0.43607198,60758.0,60757.0,0.090275]
[1724157466723,0.76965098,60758.0,60757.0,0.069375]
[1724157466932,1.40422898,60758.0,60757.0,0.009075]
[1724157468536,1.39022898,60758.0,60757.0,0.009075]
[1724157468753,1.37622898,60758.0,60757.0,0.009075]
[1724157469458,1.39022898,60758.0,60757.0,0.009075]
[1724157469869,1.40422898,60758.0,60757.0,0.009075]
[1724157470498,1.49022898,60758.0,60757.0,0.009075]
[1724157470722,1.55132898,60758.0,60757.0,0.009075]
[1724157470922,1.82866798,60758.0,60757.0,0.009075]
[1724157471541,1.93167175,60758.0,60757.0,6.6e-07]
[1724157471762,1.91767175,60758.0,60757.0,6.6e-07]
[1724157473138,1.90367175,60758.0,60757.0,6.6e-07]
[1724157473322,1.91767175,60758.0,60757.0,6.6e-07]
[1724157473526,1.93167175,60758.0,60757.0,6.6e-07]
[1724157475990,1.82466798,60758.0,60757.0,6.6e-07]
[1724157476220,1.82666798,60758.0,60757.0,6.6e-07]
[1724157476406,1.82866798,60758.0,60757.0,6.6e-07]
[1724157481347,1.9316715,60758.0,60757.0,6.6e-07]
[1724157481999,1.9276715,60758.0,60757.0,6.6e-07]
[1724157482202,1.9296715,60758.0,60757.0,6.6e-07]
[1724157482607,1.9316715,60758.0,60757.0,6.6e-07]
[1724157486658,1.266666,60756.0,60755.0,0.00903566]
[1724157486832,1.6566725,60756.0,60755.0,0.00903566]
[1724157488493,1.6706725,60756.0,60755.0,0.00903566]
[1724157488852,1.6846725,60756.0,60755.0,0.00903566]
[1724157489045,1.7497725,60756.0,60755.0,0.00903566]
[1724157489270,1.91375128,60756.0,60755.0,0.00903566]
[1724157491011,2.17709928,60756.0,60755.0,0.00903566]
[1724157491586,2.16309928,60756.0,60755.0,0.00903566]
[1724157491787,2.16309928,60756.0,60754.0,0.009086]
[1724157491788,1.332284,60755.0,60754.0,0.009086]
[1724157491988,0.542247,60752.0,60751.0,0.009075]
[1724157492195,1.2850185,60752.0,60751.0,0.009075]
[1724157492401,1.5713835,60752.0,60751.0,0.009075]
[1724157492602,1.8347485,60752.0,60751.0,0.009075]
[1724157492803,1.99872728,60752.0,60751.0,0.009075]
[1724157493209,2.01272728,60752.0,60751.0,0.009075]
[1724157494913,2.02672728,60752.0,60751.0,0.009075]
[1724157497206,1.91032728,60752.0,60751.0,0.009075]
[1724157497442,1.48176228,60752.0,60751.0,0.009075]
[1724157497620,1.59416228,60752.0,60751.0,0.009075]
[1724157497818,1.59816228,60752.0,60751.0,0.009075]
[1724157498460,2.01199268,60752.0,60751.0,0.009075]
[1724157498611,2.03499268,60752.0,60751.0,0.009075]
[1724157499206,2.08414392,60752.0,60751.0,0.009075]
[1724157499405,2.03499268,60752.0,60751.0,0.009075]
[1724157499768,2.08414392,60752.0,60751.0,0.009075]
[1724157499968,2.03499268,60752.0,60751.0,0.009075]
[1724157500322,2.08419353,60752.0,60751.0,0.009075]
[1724157500547,2.03499268,60752.0,60751.0,0.009075]
[1724157501801,1.068295,60751.0,60750.0,1.31e-06]
[1724157502034,1.67149346,60751.0,60750.0,1.31e-06]
[1724157502233,1.93486346,60751.0,60750.0,1.31e-06]
[1724157503237,1.94886346,60751.0,60750.0,1.31e-06]
[1724157503670,2.12216346,60751.0,60750.0,1.31e-06]
[1724157503874,1.94886346,60751.0,60750.0,1.31e-06]
[1724157504254,1.91365028,60751.0,60750.0,1.31e-06]
[1724157505393,1.98745156,60751.0,60750.0,1.31e-06]
[1724157506213,1.91365028,60751.0,60750.0,1.31e-06]
[1724157506446,1.98745156,60751.0,60750.0,1.31e-06]
[1724157507332,1.98725346,60751.0,60750.0,1.31e-06]
[1724157508464,1.91345218,60751.0,60750.0,1.31e-06]
[1724157509449,2.01197049,60751.0,60750.0,1.31e-06]
[1724157510614,2.00965843,60751.0,60750.0,1.31e-06]
[1724157511038,2.12205843,60751.0,60750.0,1.31e-06]
[1724157511239,2.02354012,60751.0,60750.0,1.31e-06]
[1724157511663,2.14668801,60751.0,60750.0,1.31e-06]
[1724157512336,2.02354012,60751.0,60750.0,1.31e-06]
[1724157516734,1.26851284,60748.0,60747.0,6.6e-07]
[1724157516936,1.89419333,60748.0,60747.0,6.6e-07]
[1724157518326,1.89419861,60748.0,60747.0,6.6e-07]
[1724157518527,1.92219861,60748.0,60747.0,6.6e-07]
[1724157522459,1.79884368,60748.0,60747.0,6.6e-07]
[1724157522586,1.96282246,60748.0,60747.0,6.6e-07]
[1724157523171,1.96233262,60748.0,60747.0,6.6e-07]
[1724157523389,1.96282246,60748.0,60747.0,6.6e-07]
[1724157526091,1.96233262,60748.0,60747.0,6.6e-07]
[1724157527077,1.96140828,60748.0,60747.0,6.6e-07]
[1724157527278,1.96233262,60748.0,60747.0,6.6e-07]
[1724157529016,1.96282246,60748.0,60747.0,6.6e-07]
[1724157530961,1.96233262,60748.0,60747.0,6.6e-07]
[1724157531405,1.96282246,60748.0,60747.0,6.6e-07]
[1724157531776,1.96282246,60748.0,60744.0,0.009075]
[1724157531777,0.92381034,60745.0,60744.0,0.009075]
[1724157531997,1.32321332,60745.0,60744.0,0.009075]
[1724157532224,1.42670668,60745.0,60744.0,0.009075]
[1724157532605,1.69010268,60745.0,60744.0,0.009075]
[1724157532772,1.6886885,60745.0,60744.0,0.009075]
[1724157532970,1.86666728,60745.0,60744.0,0.009075]
[1724157533177,1.86759162,60745.0,60744.0,0.009075]
[1724157533774,1.93339162,60745.0,60744.0,0.009075]
[1724157533980,1.93388146,60745.0,60744.0,0.009075]
[1724157534311,1.94788146,60745.0,60744.0,0.009075]
[1724157538248,2.02768146,60745.0,60744.0,0.009075]
[1724157540016,1.88066728,60745.0,60744.0,0.009075]
[1724157542312,1.88159162,60745.0,60744.0,0.009075]
[1724157543290,1.88208146,60745.0,60744.0,0.009075]
[1724157544615,1.88066728,60745.0,60744.0,0.009075]
[1724157544797,1.88159162,60745.0,60744.0,0.009075]
[1724157545195,1.88066728,60745.0,60744.0,0.009075]
[1724157551228,1.88159162,60745.0,60744.0,0.009075]
[1724157551459,1.88066728,60745.0,60744.0,0.009075]
[1724157553405,1.97954728,60745.0,60744.0,0.009075]
[1724157553606,1.88066728,60745.0,60744.0,0.009075]
[1724157554381,1.88159162,60745.0,60744.0,0.009075]
[1724157554582,1.96109162,60745.0,60744.0,0.009075]
[1724157555839,1.96016728,60745.0,60744.0,0.009075]
[1724157556595,1.96109162,60745.0,60744.0,0.009075]
[1724157560199,1.96016728,60745.0,60744.0,0.009075]
[1724157560400,1.96109162,60745.0,60744.0,0.009075]
[1724157563080,1.96158146,60745.0,60744.0,0.009075]
[1724157563448,1.96158146,60745.0,60744.0,6.6e-07]
[1724157563449,2.02398146,60745.0,60744.0,6.6e-07]
[1724157563768,2.02398146,60745.0,60739.0,0.1]
[1724157563769,0.92388334,60740.0,60739.0,0.1]
[1724157563968,1.70599668,60740.0,60739.0,0.1]
[1724157564194,1.80599668,60740.0,60739.0,0.1]
[1724157564323,1.82899668,60740.0,60739.0,0.1]
[1724157565102,1.84250684,60740.0,60739.0,0.1]
[1724157565292,2.00648562,60740.0,60739.0,0.1]
[1724157565495,1.90258946,60740.0,60739.0,0.1]
[1724157565700,1.86676128,60740.0,60739.0,0.1]
[1724157565906,1.88076128,60740.0,60739.0,0.1]
[1724157566253,1.85276128,60740.0,60739.0,0.1]
[1724157566449,1.60334428,60740.0,60739.0,0.1]
[1724157566651,1.61634428,60740.0,60739.0,0.1]
[1724157566891,1.60234428,60740.0,60739.0,0.1]
[1724157567093,1.71184624,60740.0,60739.0,0.1]
[1724157567307,1.61344624,60740.0,60739.0,0.1]
[1724157567499,1.71514259,60740.0,60739.0,0.1]
[1724157567653,1.61634428,60740.0,60739.0,0.1]
[1724157567853,1.71513988,60740.0,60739.0,0.1]
[1724157570100,1.71513988,60740.0,60739.0,0.1009086]
[1724157572236,1.71513858,60740.0,60739.0,0.1009086]
[1724157573644,1.60273858,60740.0,60739.0,0.1009086]
[1724157573855,1.71513858,60740.0,60739.0,0.1009086]
[1724157574468,0.36910242,60740.0,60739.0,0.1612086]
[1724157574667,0.36910242,60740.0,60739.0,0.1821086]
[1724157574668,0.2950065,60740.0,60739.0,0.1821086]
[1724157574880,0.4267145,60740.0,60739.0,0.1821086]
[1724157575110,0.6901315,60740.0,60739.0,0.1821086]
[1724157575851,0.6621315,60740.0,60739.0,0.1821086]
[1724157576253,0.79457133,60740.0,60739.0,0.1821086]
[1724157576481,0.79457133,60740.0,60739.0,0.1009086]
[1724157576482,1.08098833,60740.0,60739.0,0.1009086]
[1724157576643,1.33040533,60740.0,60739.0,0.1009086]
[1724157576844,1.33132967,60740.0,60739.0,0.1009086]
[1724157577537,1.40541529,60740.0,60739.0,0.1009086]
[1724157577764,1.34532967,60740.0,60739.0,0.1009086]
[1724157577960,1.41941538,60740.0,60739.0,0.1009086]
[1724157578984,1.39049104,60740.0,60739.0,0.1009086]
[1724157579562,1.41849104,60740.0,60739.0,0.1009086]
[1724157580264,1.42041538,60740.0,60739.0,0.1009086]
[1724157580630,1.44510167,60740.0,60739.0,0.1009086]
[1724157581285,1.44417733,60740.0,60739.0,0.1009086]
[1724157581710,1.3387375,60740.0,60739.0,0.1009086]
[1724157582120,1.28935623,60740.0,60739.0,0.1009086]
[1724157582536,1.2893547,60740.0,60739.0,0.1009086]
[1724157582763,1.2893547,60740.0,60739.0,0.1612086]
[1724157582960,1.28935403,60740.0,60739.0,0.1612086]
[1724157583359,0.73952003,60740.0,60739.0,0.1612086]
[1724157583588,0.4267145,60740.0,60739.0,0.1612086]
[1724157584355,0.32371098,60740.0,60739.0,0.1612086]
[1724157584606,0.42672072,60740.0,60739.0,0.1612086]
[1724157587493,0.32371098,60740.0,60739.0,0.1612086]
[1724157588151,0.58712798,60740.0,60739.0,0.1612086]
[1724157590218,0.19200298,60740.0,60739.0,0.1612086]
[1724157590445,0.58712798,60740.0,60739.0,0.1612086]
[1724157596574,0.58712798,60740.0,60739.0,0.1009086]
[1724157598206,0.58712798,60740.0,60739.0,0.1029086]
[1724157599368,0.58712798,60740.0,60739.0,0.1238086]
[1724157601033,0.58712798,60740.0,60739.0,0.1218086]
[1724157602640,0.58712798,60740.0,60739.0,0.1238086]
[1724157604079,0.58712798,60740.0,60739.0,0.1218086]
[1724157606166,0.58712798,60740.0,60739.0,0.1009086]
[1724157606377,0.69013797,60740.0,60739.0,0.1009086]
[1724157607068,1.38367197,60740.0,60739.0,0.1009086]
[1724157607399,1.53244098,60740.0,60739.0,0.1009086]
[1724157608469,1.38367197,60740.0,60739.0,0.1009086]
[1724157609393,1.36967197,60740.0,60739.0,0.1009086]
[1724157609819,1.38367197,60740.0,60739.0,0.1009086]
[1724157610024,1.36967197,60740.0,60739.0,0.1009086]
[1724157610290,1.38367197,60740.0,60739.0,0.1009086]
[1724157610443,1.43301197,60740.0,60739.0,0.1009086]
[1724157610666,1.59791509,60740.0,60739.0,0.1009086]
[1724157611836,1.59699075,60740.0,60739.0,0.1009086]
[1724157612249,1.54765075,60740.0,60739.0,0.1009086]
[1724157612658,1.62166075,60740.0,60739.0,0.1009086]
[1724157613484,1.81206775,60740.0,60739.0,0.1009086]
[1724157613731,1.91206775,60740.0,60739.0,0.1009086]
[1724157613930,2.01074775,60740.0,60739.0,0.1009086]
[1724157615646,2.00974775,60740.0,60739.0,0.1009086]
[1724157615987,2.01074775,60740.0,60739.0,0.1009086]
[1724157616199,2.00974775,60740.0,60739.0,0.1009086]
[1724157616401,2.01074775,60740.0,60739.0,0.1009086]
[1724157617516,2.01167209,60740.0,60739.0,0.1009086]
[1724157617717,2.01074775,60740.0,60739.0,0.1009086]
[1724157618129,1.99674775,60740.0,60739.0,0.1009086]
[1724157618532,2.01074775,60740.0,60739.0,0.1009086]
[1724157618950,1.99674775,60740.0,60739.0,0.1009086]
[1724157619338,2.01167209,60740.0,60739.0,0.1009086]
[1724157619557,1.91206775,60740.0,60739.0,0.1009086]
[1724157620223,2.01167209,60740.0,60739.0,0.1009086]
[1724157620395,1.91299209,60740.0,60739.0,0.1009086]
[1724157620824,1.91206775,60740.0,60739.0,0.1009086]
[1724157621266,2.01167209,60740.0,60739.0,0.1009086]
[1724157622619,2.01074775,60740.0,60739.0,0.1009086]
[1724157622865,2.01167209,60740.0,60739.0,0.1009086]
[1724157624119,2.01074775,60740.0,60739.0,0.1009086]
[1724157624500,1.91299209,60740.0,60739.0,0.1009086]
[1724157625081,1.91348193,60740.0,60739.0,0.1009086]
[1724157625712,1.91299209,60740.0,60739.0,7.27e-06]
[1724157625974,1.91206775,60740.0,60739.0,7.27e-06]
[1724157626137,2.01076666,60740.0,60739.0,7.27e-06]
[1724157626297,2.12316666,60740.0,60739.0,7.27e-06]
[1724157626881,2.02446775,60740.0,60739.0,7.27e-06]
[1724157630537,2.09846768,60740.0,60739.0,7.27e-06]
[1724157631304,1.98606768,60740.0,60739.0,7.27e-06]
[1724157631501,2.09846768,60740.0,60739.0,7.27e-06]
[1724157631808,2.10717758,60740.0,60739.0,7.27e-06]
[1724157633793,1.8190914,60740.0,60739.0,7.27e-06]
[1724157634749,1.81909082,60740.0,60739.0,7.27e-06]
[1724157635807,1.8437559,60740.0,60739.0,7.27e-06]
[1724157636172,1.8427559,60740.0,60739.0,7.27e-06]
[1724157636376,1.01159647,60740.0,60739.0,7.27e-06]
[1724157636607,1.07466487,60740.0,60739.0,7.27e-06]
[1724157637820,1.06066487,60740.0,60739.0,7.27e-06]
[1724157637991,0.99465488,60740.0,60739.0,7.27e-06]
[1724157638215,0.99465488,60740.0,60739.0,0.00200727]
[1724157638464,1.09649494,60740.0,60739.0,7.27e-06]
[1724157638610,1.08249494,60740.0,60739.0,7.27e-06]
[1724157638812,1.09649494,60740.0,60739.0,7.27e-06]
[1724157642655,0.30255294,60740.0,60739.0,0.13171827]
[1724157642852,0.30255294,60740.0,60739.0,0.39714027]
[1724157642853,0.20071288,60740.0,60739.0,0.39714027]
[1724157643055,0.20071288,60740.0,60739.0,0.13371827]
[1724157643475,0.20153788,60740.0,60739.0,0.13371827]
[1724157643858,0.20153788,60740.0,60739.0,0.00200727]
[1724157646439,0.33324588,60740.0,60739.0,7.27e-06]
[1724157648068,0.33324588,60740.0,60739.0,0.00200727]
[1724157648515,0.33324588,60740.0,60739.0,7.27e-06]
[1724157650099,0.59666288,60740.0,60739.0,7.27e-06]
[1724157651055,0.59666288,60740.0,60739.0,0.00200727]
[1724157652957,0.131711,60739.0,60738.0,0.02826646]
[1724157653181,0.30407435,60739.0,60738.0,0.02826646]
[1724157654640,0.31807435,60739.0,60738.0,0.02826646]
[1724157654969,0.33207435,60739.0,60738.0,0.02826646]
[1724157655834,0.33207435,60739.0,60738.0,0.02917396]
[1724157656918,0.03636037,60739.0,60738.0,0.70914912]
[1724157657342,0.028,60739.0,60738.0,0.70914912]
[1724157657694,0.014,60739.0,60738.0,0.70914912]
[1724157657905,0.000825,60740.0,60739.0,0.65906516]
[1724157659184,0.00918301,60740.0,60739.0,0.65906516]
[1724157659398,0.000825,60740.0,60739.0,0.65906516]
[1724157659609,0.00918301,60740.0,60739.0,0.65906516]
[1724157659815,0.000825,60740.0,60739.0,0.65906516]
[1724157660008,0.00917851,60740.0,60739.0,0.65906516]
[1724157660225,0.0202058,60740.0,60739.0,0.65906516]
[1724157660714,0.019825,60740.0,60739.0,0.70856516]
[1724157666667,0.02820777,60740.0,60739.0,0.70856516]
[1724157667007,0.019825,60740.0,60739.0,0.70856516]
[1724157668011,0.019825,60740.0,60739.0,0.70947266]
[1724157668451,0.02821228,60740.0,60739.0,0.70947266]
[1724157670013,0.019825,60740.0,60739.0,0.70947266]
[1724157670222,0.019825,60740.0,60739.0,1.08529466]
[1724157670352,0.019825,60740.0,60739.0,1.34871666]
[1724157670560,0.019825,60740.0,60739.0,1.38497216]
[1724157671016,0.019825,60740.0,60739.0,1.39444376]
[1724157671409,0.011825,60740.0,60739.0,1.39444376]
[1724157671759,0.000825,60740.0,60739.0,1.39444376]
[1724157673902,0.000825,60740.0,60739.0,1.41507665]
[1724157674529,0.000825,60740.0,60739.0,1.37882162]
[1724157677153,0.000825,60740.0,60739.0,1.5428246]
[1724157677353,0.000825,60740.0,60739.0,2.17784292]
[1724157677558,1e-08,60740.0,60739.0,2.37017203]
[1724157678110,1e-08,60740.0,60739.0,2.27215397]
[1724157678646,0.00100001,60740.0,60739.0,2.27215397]
[1724157678843,0.00100001,60740.0,60739.0,2.27214159]
[1724157679080,0.00100001,60740.0,60739.0,2.27114159]
[1724157679276,0.00100001,60740.0,60739.0,2.42645559]
[1724157679713,0.00100001,60740.0,60739.0,2.42745559]
[1724157680044,0.00200001,60740.0,60739.0,2.42945559]
[1724157681380,0.00200001,60740.0,60739.0,3.20945559]
[1724157681509,0.00200001,60740.0,60739.0,3.27945559]
[1724157682813,0.00200001,60740.0,60739.0,3.20145759]
[1724157683020,0.00200001,60740.0,60739.0,3.27945965]
[1724157684461,0.00200001,60740.0,60739.0,3.21776778]
[1724157684665,0.00200001,60740.0,60739.0,3.21976778]
[1724157685583,0.00200001,60740.0,60739.0,3.17076778]
[1724157685910,0.00200001,60740.0,60739.0,3.21232474]
[1724157686325,0.00200001,60740.0,60739.0,3.11438776]
[1724157687935,0.00200001,60740.0,60739.0,3.23672031]
[1724157688169,0.00200001,60740.0,60739.0,3.07814265]
[1724157689028,0.00100001,60740.0,60739.0,3.07814265]
[1724157689235,0.00200001,60740.0,60739.0,3.07814265]
[1724157689455,0.00100001,60740.0,60739.0,3.07614265]
[1724157689746,0.00200001,60740.0,60739.0,3.17900049]
[1724157690559,0.00200001,60740.0,60739.0,3.08113601]
[1724157690999,0.00200001,60740.0,60739.0,3.08113609]
[1724157692369,0.00200001,60740.0,60739.0,3.17899393]
[1724157692542,0.00200001,60740.0,60739.0,3.08113609]
[1724157692543,1e-08,60740.0,60739.0,3.08113609]
[1724157692749,1e-08,60740.0,60739.0,2.71622872]
[1724157692951,1e-08,60740.0,60739.0,3.20342535]
[1724157693152,1e-08,60740.0,60739.0,3.08110279]
[1724157693353,1e-08,60740.0,60739.0,3.20541447]
[1724157693598,1e-08,60740.0,60739.0,3.20341447]
[1724157693796,0.00082501,60740.0,60739.0,3.20341447]
[1724157694083,0.00082501,60740.0,60739.0,3.20541447]
[1724157694315,0.00082501,60740.0,60739.0,3.08310279]
[1724157694520,0.00082501,60740.0,60739.0,3.20541252]
[1724157694812,0.00082501,60740.0,60739.0,3.2054118]
[1724157694970,0.00082501,60740.0,60739.0,3.20541184]
[1724157695379,0.00082501,60740.0,60739.0,3.08510211]
[1724157696560,0.00082501,60740.0,60739.0,3.34852411]
[1724157697290,1e-08,60740.0,60739.0,3.39579809]
[1724157697501,0.000826,60744.0,60743.0,1.76513616]
[1724157697852,0.000826,60744.0,60743.0,3.37426757]
[1724157698619,0.000826,60744.0,60743.0,3.37426034]
[1724157698821,0.000826,60744.0,60743.0,3.37626034]
[1724157699756,0.000826,60747.0,60746.0,1.76705116]
[1724157699903,0.000826,60747.0,60746.0,3.32890136]
[1724157701178,0.001826,60747.0,60746.0,3.33690136]
[1724157701846,0.001826,60747.0,60746.0,3.41317534]
[1724157702042,0.001826,60747.0,60746.0,3.56291756]
[1724157702395,0.000826,60748.0,60746.0,3.56291756]
[1724157702396,0.000826,60748.0,60747.0,1.45413816]
[1724157702718,0.000826,60748.0,60747.0,3.02607141]
[1724157702903,0.000826,60748.0,60747.0,3.02607148]
[1724157703274,0.000826,60748.0,60747.0,3.28945848]
[1724157703760,0.000826,60748.0,60747.0,3.29545848]
[1724157703961,0.000826,60751.0,60750.0,1.71744116]
[1724157704188,1e-06,60751.0,60750.0,3.42177448]
[1724157704386,0.000826,60758.0,60753.0,1.24013416]
[1724157704387,1e-06,60754.0,60753.0,1.24013416]
[1724157704591,1e-06,60754.0,60753.0,3.19182848]
[1724157704788,1e-06,60754.0,60753.0,3.45318948]
[1724157705035,1e-06,60754.0,60753.0,3.45518948]
[1724157705206,1e-06,60754.0,60753.0,3.16628948]
[1724157705428,1e-06,60754.0,60753.0,3.11678948]
[1724157705623,1e-06,60754.0,60753.0,3.08793028]
[1724157705826,1e-06,60754.0,60753.0,2.96582848]
[1724157706188,1e-06,60754.0,60753.0,3.06351751]